[Event "Rapid Tournament (RAP)"]
[Site "Biel, Switzerland"]
[Date "2026.07.12"]
[Round "6.18"]
[White "Fogo Esquivel, Levi Kalani Alexander"]
[Black "Grzeskowiak, Antoni"]
[Result "1-0"]
[TimeControl "15 + 5"]
[WhiteTitle "-"]
[BlackTitle "-"]
[WhiteFideId "5183189"]
[BlackFideId "41855531"]
[WhiteElo "2088"]
[BlackElo "1844"]

1. e4 {[%clk 00:14:35]} {[%emt 00:00:34]} d6 {[%clk 00:15:08]} {[%emt
00:00:02]} 2. d4 {[%clk 00:14:39]} {[%emt 00:00:03]} Nf6 {[%clk 00:15:11]}
{[%emt 00:00:01]} 3. Nc3 {[%clk 00:14:42]} {[%emt 00:00:02]} g6 {[%clk
00:15:15]} 4. Bg5 {[%clk 00:14:44]} {[%emt 00:00:03]} Bg7 {[%clk 00:15:15]}
{[%emt 00:00:06]} 5. e5 {[%clk 00:14:47]} {[%emt 00:00:01]} Nfd7 {[%clk
00:14:55]} {[%emt 00:00:24]} 6. f4 {[%clk 00:14:48]} {[%emt 00:00:04]} c5
{[%clk 00:14:03]} {[%emt 00:00:58]} 7. exd6 {[%clk 00:13:47]} {[%emt 00:01:06]}
cxd4 {[%clk 00:14:05]} {[%emt 00:00:04]} 8. Nb5 {[%clk 00:12:52]} {[%emt
00:01:00]} Na6 {[%clk 00:12:55]} {[%emt 00:01:14]} 9. Bxe7 {[%clk 00:12:51]}
{[%emt 00:00:06]} Qa5+ {[%clk 00:12:47]} {[%emt 00:00:13]} 10. Qd2 {[%clk
00:12:46]} {[%emt 00:00:10]} Qxd2+ {[%clk 00:12:04]} {[%emt 00:00:48]} 11. Kxd2
{[%clk 00:12:50]} {[%emt 00:00:01]} Ndc5 {[%clk 00:12:02]} {[%emt 00:00:07]} 12.
Re1 {[%clk 00:12:43]} {[%emt 00:00:11]} Be6 {[%clk 00:12:03]} {[%emt 00:00:05]}
13. Nf3 {[%clk 00:12:47]} {[%emt 00:00:02]} Kd7 {[%clk 00:11:01]} {[%emt
00:01:07]} 14. Nbxd4 {[%clk 00:12:47]} {[%emt 00:00:05]} Bd5 {[%clk 00:10:50]}
{[%emt 00:00:15]} 15. Bb5+ {[%clk 00:12:18]} {[%emt 00:00:33]} Bc6 {[%clk
00:10:50]} {[%emt 00:00:06]} 16. Bc4 {[%clk 00:12:20]} {[%emt 00:00:02]} Ne4+
{[%clk 00:10:45]} {[%emt 00:00:11]} 17. Rxe4 {[%clk 00:11:58]} {[%emt
00:00:27]} Bxe4 {[%clk 00:10:43]} {[%emt 00:00:07]} 18. Bxf7 {[%clk 00:11:57]}
{[%emt 00:00:06]} Nc5 {[%clk 00:09:52]} {[%emt 00:00:56]} 19. b4 {[%clk
00:11:54]} {[%emt 00:00:08]} Raf8 {[%clk 00:08:26]} {[%emt 00:01:30]} 20. Bc4
{[%clk 00:11:23]} {[%emt 00:00:37]} Bxf3 {[%clk 00:08:22]} {[%emt 00:00:10]} 21.
Bxf8 {[%emt 00:01:11]} Ne4+ {[%clk 00:07:44]} {[%emt 00:00:41]} 22. Ke3 {[%clk
00:10:06]} {[%emt 00:00:17]} Bxd4+ {[%clk 00:07:35]} {[%emt 00:00:14]} 23. Kxd4
{[%clk 00:09:49]} {[%emt 00:00:22]} Bxg2 {[%clk 00:07:33]} {[%emt 00:00:08]} 24.
Bg7 {[%clk 00:07:31]} {[%emt 00:02:23]} Bxh1 {[%clk 00:07:26]} {[%emt
00:00:12]} 25. Bxh8 {[%clk 00:07:35]} {[%emt 00:00:01]} Nxd6 {[%clk 00:07:29]}
{[%emt 00:00:02]} 26. Bd3 {[%clk 00:07:38]} {[%emt 00:00:02]} Ke6 {[%clk
00:07:11]} {[%emt 00:00:24]} 27. c4 {[%clk 00:07:36]} {[%emt 00:00:07]} b6
{[%clk 00:07:01]} {[%emt 00:00:15]} 28. c5 {[%clk 00:07:36]} {[%emt 00:00:05]}
Nf5+ {[%clk 00:06:51]} {[%emt 00:00:15]} 29. Kc4 {[%clk 00:07:30]} {[%emt
00:00:08]} Bd5+ {[%clk 00:06:25]} {[%emt 00:00:34]} 30. Kb5 {[%clk 00:07:34]}
{[%emt 00:00:01]} bxc5 {[%clk 00:06:29]} {[%emt 00:00:01]} 31. Kxc5 {[%clk
00:05:54]} {[%emt 00:01:46]} Nd6 {[%clk 00:05:46]} {[%emt 00:00:45]} 32. a4
{[%clk 00:05:29]} {[%emt 00:00:31]} Nb7+ {[%clk 00:05:41]} {[%emt 00:00:11]} 33.
Kb5 {[%clk 00:05:32]} {[%emt 00:00:02]} Kd7 {[%clk 00:05:36]} {[%emt 00:00:11]}
34. Ka6 {[%clk 00:05:34]} {[%emt 00:00:03]} Nd8 {[%clk 00:05:06]} {[%emt
00:00:34]} 35. Bb5+ {[%clk 00:05:13]} {[%emt 00:00:26]} Bc6 {[%clk 00:03:03]}
{[%emt 00:02:08]} 36. Kxa7 {[%clk 00:05:17]} {[%emt 00:00:01]} Kc8 {[%clk
00:01:52]} {[%emt 00:01:16]} 37. Ba6+ {[%clk 00:05:13]} {[%emt 00:00:09]} Kd7
{[%clk 00:01:49]} {[%emt 00:00:08]} 38. b5 {[%clk 00:05:17]} {[%emt 00:00:01]}
Be4 {[%clk 00:01:43]} {[%emt 00:00:11]} 39. Bf6 {[%clk 00:05:05]} {[%emt
00:00:16]} Ne6 {[%clk 00:01:23]} {[%emt 00:00:26]} 40. b6 {[%clk 00:05:08]}
{[%emt 00:00:02]} Nc5 {[%clk 00:00:15]} {[%emt 00:01:13]} 41. Bb5 {[%clk
00:04:34]} {[%emt 00:00:40]} Kc8 {[%clk 00:00:15]} {[%emt 00:00:04]} 42. a5
{[%clk 00:04:24]} {[%emt 00:00:16]} Nb3 {[%clk 00:00:09]} {[%emt 00:00:10]} 43.
a6 {[%clk 00:04:25]} {[%emt 00:00:04]} Nc5 {[%clk 00:00:13]} 44. Bd4 {[%clk
00:04:23]} {[%emt 00:00:07]} Ne6 {[%clk 00:00:13]} {[%emt 00:00:05]} 45. b7+
{[%clk 00:04:26]} {[%emt 00:00:02]} 1-0

[Event "Rapid Tournament (RAP)"]
[Site "Biel, Switzerland"]
[Date "2026.07.12"]
[Round "6.19"]
[White "Aryan, Goyal"]
[Black "Manko, Mariia"]
[Result "0-1"]
[TimeControl "15 + 5"]
[WhiteTitle "-"]
[BlackTitle "-"]
[WhiteFideId "366108825"]
[BlackFideId "14199220"]
[WhiteElo "1869"]
[BlackElo "2210"]

1. e4 {[%emt 00:03:19]} c5 2. Nf3 {[%emt 00:00:01]} Nc6 {[%emt 00:00:01]} 3.
Bb5 {[%emt 00:00:05]} e5 4. Bxc6 {[%emt 00:00:06]} dxc6 {[%emt 00:00:02]} 5. d3
{[%emt 00:00:04]} Bd6 {[%emt 00:00:02]} 6. O-O {[%emt 00:00:01]} Ne7 {[%emt
00:00:40]} 7. a4 {[%emt 00:00:08]} a5 {[%emt 00:00:02]} 8. b3 {[%clk 00:15:02]}
{[%emt 00:00:12]} O-O {[%clk 00:14:47]} {[%emt 00:00:09]} 9. Nbd2 {[%clk
00:15:06]} {[%emt 00:00:06]} Ng6 {[%clk 00:14:30]} {[%emt 00:00:22]} 10. Nc4
{[%clk 00:14:59]} {[%emt 00:00:11]} Bc7 {[%clk 00:14:28]} {[%emt 00:00:08]} 11.
Be3 {[%clk 00:14:51]} {[%emt 00:00:12]} b6 {[%clk 00:14:16]} {[%emt 00:00:17]}
12. Qd2 {[%clk 00:14:32]} {[%emt 00:00:24]} f6 {[%clk 00:13:58]} {[%emt
00:00:24]} 13. c3 {[%clk 00:14:02]} {[%emt 00:00:35]} Bg4 {[%clk 00:13:40]}
{[%emt 00:00:22]} 14. Ne1 {[%clk 00:13:57]} {[%emt 00:00:10]} Qd7 {[%clk
00:13:28]} {[%emt 00:00:17]} 15. Nc2 {[%clk 00:13:06]} {[%emt 00:00:57]} Rfd8
{[%clk 00:10:02]} {[%emt 00:03:31]} 16. f3 {[%clk 00:12:45]} {[%emt 00:00:26]}
Be6 {[%clk 00:10:04]} {[%emt 00:00:03]} 17. Rfd1 {[%clk 00:12:33]} {[%emt
00:00:17]} b5 {[%clk 00:09:48]} {[%emt 00:00:21]} 18. axb5 {[%clk 00:12:17]}
{[%emt 00:00:21]} cxb5 {[%clk 00:09:51]} {[%emt 00:00:02]} 19. N4a3 {[%clk
00:12:18]} Bxb3 {[%clk 00:09:42]} {[%emt 00:00:17]} 20. Bxc5 {[%clk 00:12:16]}
{[%emt 00:00:07]} Nf4 {[%clk 00:09:07]} {[%emt 00:00:39]} 21. Rab1 {[%clk
00:09:54]} {[%emt 00:02:28]} Ba4 {[%clk 00:08:51]} {[%emt 00:00:21]} 22. d4
{[%clk 00:08:39]} {[%emt 00:01:20]} Ne6 {[%clk 00:08:43]} {[%emt 00:00:13]} 23.
Qe2 {[%clk 00:07:45]} {[%emt 00:01:00]} Nxc5 {[%clk 00:06:17]} {[%emt
00:02:30]} 24. dxc5 {[%clk 00:07:49]} {[%emt 00:00:01]} Qc6 {[%clk 00:06:20]}
{[%emt 00:00:03]} 25. Rxd8+ {[%clk 00:07:06]} {[%emt 00:00:47]} Rxd8 {[%clk
00:06:10]} {[%emt 00:00:16]} 26. Nxb5 {[%clk 00:06:56]} {[%emt 00:00:16]} Qxc5+
{[%clk 00:06:10]} {[%emt 00:00:04]} 27. Ne3 {[%clk 00:06:28]} {[%emt 00:00:33]}
Bb6 {[%clk 00:05:58]} {[%emt 00:00:16]} 28. Qa2+ {[%clk 00:06:21]} {[%emt
00:00:13]} Kh8 {[%clk 00:05:35]} {[%emt 00:00:28]} 29. Qxa4 {[%clk 00:06:22]}
{[%emt 00:00:04]} Qxe3+ {[%clk 00:05:34]} {[%emt 00:00:06]} 30. Kh1 {[%clk
00:06:25]} {[%emt 00:00:01]} Qd3 {[%clk 00:04:53]} {[%emt 00:00:46]} 31. Ra1
{[%clk 00:06:01]} {[%emt 00:00:29]} h5 {[%clk 00:04:51]} {[%emt 00:00:08]} 32.
Qb3 {[%clk 00:05:35]} {[%emt 00:00:31]} h4 {[%clk 00:04:34]} {[%emt 00:00:22]}
33. Na3 {[%clk 00:05:04]} {[%emt 00:00:36]} Be3 {[%clk 00:03:59]} {[%emt
00:00:39]} 34. Nc4 {[%clk 00:04:54]} {[%emt 00:00:16]} h3 {[%clk 00:03:27]}
{[%emt 00:00:37]} 35. gxh3 {[%clk 00:03:43]} {[%emt 00:01:15]} Bf4 {[%clk
00:03:20]} {[%emt 00:00:13]} 36. Qa2 {[%clk 00:03:36]} {[%emt 00:00:12]} Qxf3+
{[%clk 00:02:38]} {[%emt 00:00:46]} 37. Qg2 {[%clk 00:03:39]} {[%emt 00:00:02]}
Qxc3 {[%clk 00:02:33]} {[%emt 00:00:11]} 38. Rg1 {[%clk 00:03:35]} {[%emt
00:00:09]} Bh6 {[%clk 00:02:35]} {[%emt 00:00:03]} 39. Nb6 {[%clk 00:03:20]}
{[%emt 00:00:20]} Rd2 {[%clk 00:02:23]} {[%emt 00:00:16]} 40. Qg4 {[%clk
00:03:23]} Qc2 {[%clk 00:02:07]} {[%emt 00:00:23]} 41. Qg3 {[%clk 00:03:12]}
{[%emt 00:00:15]} Qxe4+ {[%clk 00:02:06]} {[%emt 00:00:06]} 0-1

[Event "Rapid Tournament (RAP)"]
[Site "Biel, Switzerland"]
[Date "2026.07.12"]
[Round "6.20"]
[White "Frey, Fabian"]
[Black "Jehnichen, Kai"]
[Result "1-0"]
[TimeControl "15 + 5"]
[WhiteTitle "-"]
[BlackTitle "-"]
[WhiteFideId "1336487"]
[BlackFideId "24684333"]
[WhiteElo "2207"]
[BlackElo "1903"]

1. d4 {[%clk 00:15:01]} {[%emt 00:00:08]} f5 {[%clk 00:15:08]} {[%emt
00:00:03]} 2. e4 {[%clk 00:14:05]} {[%emt 00:01:01]} fxe4 {[%clk 00:15:07]}
{[%emt 00:00:06]} 3. Nc3 {[%clk 00:14:09]} {[%emt 00:00:01]} Nf6 {[%clk
00:15:11]} 4. Bg5 {[%clk 00:14:14]} g6 {[%clk 00:15:03]} {[%emt 00:00:13]} 5.
f3 {[%clk 00:13:49]} {[%emt 00:00:30]} exf3 {[%clk 00:15:01]} {[%emt 00:00:07]}
6. Nxf3 {[%clk 00:13:52]} {[%emt 00:00:01]} Bg7 {[%clk 00:14:58]} {[%emt
00:00:09]} 7. Bc4 {[%clk 00:13:56]} {[%emt 00:00:01]} c6 {[%clk 00:15:00]}
{[%emt 00:00:03]} 8. d5 {[%clk 00:13:35]} {[%emt 00:00:26]} cxd5 {[%clk
00:14:55]} {[%emt 00:00:10]} 9. Nxd5 {[%clk 00:13:30]} {[%emt 00:00:11]} Nxd5
{[%clk 00:14:53]} {[%emt 00:00:07]} 10. Qxd5 {[%clk 00:13:26]} {[%emt
00:00:08]} Rf8 {[%clk 00:14:50]} {[%emt 00:00:08]} 11. O-O-O {[%clk 00:13:08]}
{[%emt 00:00:22]} Qb6 {[%clk 00:14:49]} {[%emt 00:00:08]} 12. Bb3 {[%clk
00:12:49]} {[%emt 00:00:23]} e6 {[%clk 00:14:22]} {[%emt 00:00:32]} 13. Qd2
{[%clk 00:12:47]} {[%emt 00:00:02]} a5 {[%clk 00:14:22]} {[%emt 00:00:10]} 14.
a4 {[%clk 00:12:32]} {[%emt 00:00:20]} Na6 {[%clk 00:14:14]} {[%emt 00:00:13]}
15. Bh6 {[%clk 00:11:14]} {[%emt 00:01:21]} Bxh6 {[%clk 00:13:53]} {[%emt
00:00:27]} 16. Qxh6 {[%clk 00:11:17]} Nc5 {[%clk 00:13:57]} {[%emt 00:00:04]}
17. Qxh7 {[%clk 00:11:05]} {[%emt 00:00:17]} Nxb3+ {[%clk 00:13:41]} {[%emt
00:00:22]} 18. cxb3 {[%clk 00:11:08]} {[%emt 00:00:01]} Qe3+ {[%clk 00:13:41]}
{[%emt 00:00:05]} 19. Kb1 {[%clk 00:10:51]} {[%emt 00:00:21]} Qxb3 {[%clk
00:12:54]} {[%emt 00:00:53]} 20. Qxg6+ {[%clk 00:10:49]} {[%emt 00:00:07]} Ke7
{[%clk 00:12:41]} {[%emt 00:00:18]} 21. Rhf1 {[%clk 00:09:26]} {[%emt
00:01:27]} Rxf3 {[%clk 00:12:05]} {[%emt 00:00:42]} 22. gxf3 {[%clk 00:09:22]}
{[%emt 00:00:09]} Qxa4 {[%clk 00:12:04]} {[%emt 00:00:06]} 23. Rg1 {[%clk
00:09:10]} {[%emt 00:00:16]} d5 {[%clk 00:11:59]} {[%emt 00:00:11]} 24. Qg7+
{[%clk 00:08:51]} {[%emt 00:00:24]} Kd6 {[%clk 00:12:03]} {[%emt 00:00:01]} 25.
Qf8+ {[%clk 00:08:18]} {[%emt 00:00:37]} Kc7 {[%clk 00:11:57]} {[%emt
00:00:13]} 26. Rc1+ {[%clk 00:08:18]} {[%emt 00:00:03]} 1-0

[Event "Rapid Tournament (RAP)"]
[Site "Biel, Switzerland"]
[Date "2026.07.12"]
[Round "6.21"]
[White "Fernandes Barbosa Dos Santos, Gabriel"]
[Black "Berezovskii, Arina"]
[Result "1-0"]
[TimeControl "15 + 5"]
[WhiteTitle "-"]
[BlackTitle "-"]
[WhiteFideId "1354388"]
[BlackFideId "34449850"]
[WhiteElo "2199"]
[BlackElo "1895"]

1. e4 {[%clk 00:15:08]} {[%emt 00:00:01]} e5 {[%clk 00:15:09]} {[%emt
00:00:02]} 2. Nf3 {[%clk 00:15:11]} {[%emt 00:00:01]} Nf6 {[%clk 00:15:12]}
{[%emt 00:00:03]} 3. Nxe5 {[%clk 00:15:11]} {[%emt 00:00:03]} d6 {[%clk
00:15:16]} 4. Nf3 {[%clk 00:15:14]} {[%emt 00:00:02]} Nxe4 {[%clk 00:15:19]}
{[%emt 00:00:02]} 5. Bd3 {[%clk 00:15:17]} {[%emt 00:00:02]} Nf6 {[%clk
00:15:10]} {[%emt 00:00:15]} 6. Be2 {[%clk 00:14:58]} {[%emt 00:00:24]} Be7
{[%clk 00:15:03]} {[%emt 00:00:12]} 7. O-O {[%clk 00:14:59]} {[%emt 00:00:05]}
O-O {[%clk 00:15:05]} {[%emt 00:00:02]} 8. d4 {[%clk 00:14:52]} {[%emt
00:00:12]} b6 {[%clk 00:14:15]} {[%emt 00:00:55]} 9. c4 {[%clk 00:14:50]}
{[%emt 00:00:07]} d5 {[%clk 00:14:02]} {[%emt 00:00:18]} 10. Nc3 {[%clk
00:14:23]} {[%emt 00:00:31]} Bb7 {[%clk 00:14:01]} {[%emt 00:00:07]} 11. Bg5
{[%clk 00:13:42]} {[%emt 00:00:46]} h6 {[%clk 00:13:44]} {[%emt 00:00:21]} 12.
Bh4 {[%clk 00:13:45]} {[%emt 00:00:03]} Re8 {[%clk 00:13:17]} {[%emt 00:00:32]}
13. Re1 {[%clk 00:13:33]} {[%emt 00:00:17]} Nbd7 {[%emt 00:01:06]} 14. Qb3
{[%clk 00:13:03]} Nf8 {[%clk 00:11:35]} {[%emt 00:01:20]} 15. Bxf6 {[%clk
00:12:23]} {[%emt 00:00:45]} Bxf6 {[%clk 00:11:38]} {[%emt 00:00:03]} 16. Nxd5
{[%clk 00:12:20]} {[%emt 00:00:08]} Bxd5 {[%clk 00:11:27]} {[%emt 00:00:16]} 17.
cxd5 {[%clk 00:12:23]} {[%emt 00:00:02]} Ng6 {[%clk 00:10:56]} {[%emt
00:00:36]} 18. g3 {[%clk 00:12:15]} {[%emt 00:00:13]} Ne7 {[%clk 00:10:34]}
{[%emt 00:00:26]} 19. Bc4 {[%clk 00:12:03]} {[%emt 00:00:17]} Nf5 {[%clk
00:10:22]} {[%emt 00:00:18]} 20. Bb5 {[%clk 00:10:54]} {[%emt 00:01:14]} Rxe1+
{[%clk 00:09:28]} {[%emt 00:00:58]} 21. Rxe1 {[%clk 00:10:57]} {[%emt
00:00:03]} Qd6 {[%clk 00:09:15]} {[%emt 00:00:17]} 22. Qc4 {[%clk 00:10:31]}
{[%emt 00:00:32]} Rd8 {[%clk 00:08:29]} {[%emt 00:00:50]} 23. Bc6 {[%clk
00:08:52]} {[%emt 00:01:44]} Ne7 {[%clk 00:08:00]} {[%emt 00:00:34]} 24. Kg2
{[%clk 00:08:27]} {[%emt 00:00:30]} Nxd5 {[%clk 00:07:08]} {[%emt 00:00:58]} 25.
Re8+ {[%clk 00:07:11]} {[%emt 00:01:21]} Rxe8 {[%clk 00:06:56]} {[%emt
00:00:17]} 26. Bxe8 {[%clk 00:07:11]} {[%emt 00:00:05]} Kf8 {[%clk 00:06:08]}
{[%emt 00:00:53]} 27. Bc6 {[%clk 00:06:58]} {[%emt 00:00:18]} Ne7 {[%clk
00:05:57]} {[%emt 00:00:16]} 28. Be4 {[%clk 00:06:58]} {[%emt 00:00:04]} c5
{[%clk 00:04:39]} {[%emt 00:01:23]} 29. dxc5 {[%clk 00:06:23]} {[%emt
00:00:40]} Qxc5 {[%clk 00:04:00]} {[%emt 00:00:45]} 30. Qd3 {[%clk 00:06:21]}
{[%emt 00:00:07]} Qc7 {[%clk 00:03:42]} {[%emt 00:00:23]} 31. b3 {[%clk
00:06:23]} {[%emt 00:00:03]} Nc8 {[%clk 00:03:27]} {[%emt 00:00:20]} 32. Nd2
{[%emt 00:01:07]} Qc3 {[%clk 00:02:55]} 33. Qd7 {[%clk 00:05:50]} {[%emt
00:00:13]} g6 {[%clk 00:01:57]} {[%emt 00:01:03]} 34. Nc4 {[%clk 00:05:13]}
{[%emt 00:00:42]} Ne7 {[%clk 00:01:42]} {[%emt 00:00:21]} 35. Nd6 {[%clk
00:04:20]} {[%emt 00:00:57]} Kg7 {[%clk 00:01:07]} {[%emt 00:00:40]} 36. Qe8
{[%clk 00:04:09]} {[%emt 00:00:16]} Qe5 {[%clk 00:00:46]} {[%emt 00:00:26]} 37.
Qxf7+ {[%clk 00:04:07]} {[%emt 00:00:07]} Kh8 {[%clk 00:00:48]} {[%emt
00:00:02]} 38. Qf8+ {[%clk 00:03:18]} {[%emt 00:00:54]} Kh7 {[%clk 00:00:50]}
{[%emt 00:00:04]} 39. Qd8 {[%clk 00:02:08]} {[%emt 00:01:14]} Nf5 {[%clk
00:00:36]} {[%emt 00:00:19]} 40. Qd7+ {[%clk 00:02:04]} {[%emt 00:00:10]} Ng7
{[%clk 00:00:28]} {[%emt 00:00:13]} 41. Bf3 {[%clk 00:01:56]} {[%emt 00:00:12]}
Be7 {[%clk 00:00:16]} {[%emt 00:00:17]} 42. Nc4 {[%clk 00:01:39]} {[%emt
00:00:23]} Qe6 {[%clk 00:00:08]} {[%emt 00:00:13]} 43. Qxa7 {[%clk 00:01:34]}
{[%emt 00:00:10]} Bc5 {[%clk 00:00:11]} {[%emt 00:00:03]} 44. Nd2 {[%clk
00:00:47]} {[%emt 00:00:51]} Qe1 {[%clk 00:00:06]} {[%emt 00:00:10]} 45. Ne4
{[%clk 00:00:48]} {[%emt 00:00:05]} Bd4 {[%clk 00:00:08]} {[%emt 00:00:03]} 46.
Qd7 {[%clk 00:00:47]} {[%emt 00:00:05]} Be5 {[%clk 00:00:07]} {[%emt 00:00:07]}
47. h4 {[%clk 00:00:41]} {[%emt 00:00:10]} Qa1 {[%clk 00:00:09]} {[%emt
00:00:04]} 48. Qe7 {[%clk 00:00:34]} {[%emt 00:00:11]} Bd4 {[%clk 00:00:09]}
{[%emt 00:00:06]} 49. Qd6 {[%clk 00:00:34]} {[%emt 00:00:04]} Nf5 {[%clk
00:00:07]} {[%emt 00:00:08]} 50. Qd7+ {[%clk 00:00:32]} {[%emt 00:00:07]} Ng7
{[%clk 00:00:08]} {[%emt 00:00:04]} 51. a4 {[%clk 00:00:23]} {[%emt 00:00:14]}
Qb2 {[%clk 00:00:09]} {[%emt 00:00:04]} 52. Qd5 {[%clk 00:00:21]} {[%emt
00:00:07]} Bc3 {[%clk 00:00:07]} {[%emt 00:00:06]} 53. h5 {[%clk 00:00:20]}
{[%emt 00:00:06]} gxh5 {[%clk 00:00:07]} {[%emt 00:00:05]} 54. Qd3 {[%clk
00:00:20]} {[%emt 00:00:05]} Be5 {[%clk 00:00:07]} {[%emt 00:00:06]} 55. Nf6+
{[%clk 00:00:24]} {[%emt 00:00:01]} 1-0

[Event "Rapid Tournament (RAP)"]
[Site "Biel, Switzerland"]
[Date "2026.07.12"]
[Round "6.22"]
[White "Harish, Neeraj"]
[Black "Hajduk, Tomasz"]
[Result "1-0"]
[TimeControl "15 + 5"]
[WhiteTitle "-"]
[BlackTitle "-"]
[WhiteFideId "30958130"]
[BlackFideId "21811415"]
[WhiteElo "2140"]
[BlackElo "1879"]

1. e4 {[%clk 00:14:10]} {[%emt 00:01:00]} c5 {[%clk 00:15:09]} {[%emt
00:00:02]} 2. d4 {[%clk 00:14:13]} {[%emt 00:00:01]} cxd4 {[%clk 00:15:13]}
{[%emt 00:00:02]} 3. Qxd4 {[%clk 00:14:17]} {[%emt 00:00:01]} Nc6 {[%clk
00:15:13]} {[%emt 00:00:05]} 4. Qd3 {[%clk 00:14:21]} Nf6 {[%clk 00:15:11]}
{[%emt 00:00:08]} 5. Nc3 {[%clk 00:14:25]} {[%emt 00:00:01]} d6 {[%clk
00:14:39]} {[%emt 00:00:37]} 6. Nf3 {[%clk 00:14:26]} {[%emt 00:00:04]} e5
{[%clk 00:13:54]} {[%emt 00:00:50]} 7. Bg5 {[%clk 00:14:08]} {[%emt 00:00:22]}
Be7 {[%clk 00:13:55]} {[%emt 00:00:05]} 8. O-O-O {[%clk 00:14:02]} {[%emt
00:00:10]} Be6 {[%clk 00:13:19]} {[%emt 00:00:41]} 9. Bxf6 {[%clk 00:13:21]}
{[%emt 00:00:46]} gxf6 {[%clk 00:13:20]} {[%emt 00:00:04]} 10. Nd5 {[%clk
00:13:21]} {[%emt 00:00:06]} Rc8 {[%clk 00:12:42]} {[%emt 00:00:43]} 11. Kb1
{[%clk 00:13:14]} {[%emt 00:00:11]} a6 {[%clk 00:12:25]} {[%emt 00:00:23]} 12.
c3 {[%clk 00:12:50]} {[%emt 00:00:29]} Rg8 {[%clk 00:11:44]} {[%emt 00:00:45]}
13. Nh4 {[%clk 00:12:34]} {[%emt 00:00:21]} b5 {[%clk 00:09:54]} {[%emt
00:01:56]} 14. Nf5 {[%clk 00:12:08]} {[%emt 00:00:31]} Bxf5 {[%clk 00:09:54]}
{[%emt 00:00:04]} 15. exf5 {[%clk 00:12:11]} {[%emt 00:00:03]} Na5 {[%clk
00:09:27]} {[%emt 00:00:32]} 16. Qh3 {[%clk 00:11:05]} {[%emt 00:01:10]} Rh8
{[%clk 00:08:44]} {[%emt 00:00:48]} 17. Qh6 {[%clk 00:10:05]} {[%emt 00:01:05]}
Kd7 {[%clk 00:07:49]} {[%emt 00:01:01]} 18. Qg7 {[%clk 00:09:40]} {[%emt
00:00:30]} Rf8 {[%clk 00:07:14]} {[%emt 00:00:40]} 19. Qxh7 {[%clk 00:09:08]}
{[%emt 00:00:37]} Nc4 {[%clk 00:07:15]} {[%emt 00:00:04]} 20. Bxc4 {[%clk
00:08:47]} {[%emt 00:00:25]} bxc4 {[%clk 00:07:18]} {[%emt 00:00:02]} 21. Rd2
{[%clk 00:08:42]} {[%emt 00:00:10]} Rb8 {[%clk 00:06:31]} {[%emt 00:00:53]} 22.
Rhd1 {[%clk 00:08:38]} {[%emt 00:00:09]} Qa5 {[%clk 00:05:54]} {[%emt
00:00:41]} 23. Qg7 {[%clk 00:07:27]} {[%emt 00:01:15]} Rb6 {[%clk 00:03:40]}
{[%emt 00:02:21]} 24. Nxb6+ {[%clk 00:07:02]} {[%emt 00:00:30]} Qxb6 {[%clk
00:03:43]} {[%emt 00:00:01]} 25. h4 {[%clk 00:07:03]} {[%emt 00:00:05]} Qb7
{[%clk 00:03:04]} {[%emt 00:00:44]} 26. f3 {[%clk 00:06:23]} {[%emt 00:00:44]}
e4 {[%clk 00:02:58]} {[%emt 00:00:11]} 27. Rxd6+ {[%clk 00:05:27]} {[%emt
00:01:01]} Bxd6 {[%clk 00:02:55]} {[%emt 00:00:09]} 28. Qxf8 {[%clk 00:05:31]}
Qc6 {[%clk 00:02:14]} {[%emt 00:00:46]} 29. Rxd6+ {[%clk 00:05:28]} {[%emt
00:00:08]} Qxd6 {[%clk 00:02:18]} 30. Qxd6+ {[%clk 00:05:31]} {[%emt 00:00:01]}
Kxd6 {[%clk 00:02:20]} {[%emt 00:00:03]} 31. fxe4 {[%clk 00:05:35]} 1-0